lending/lending_fUSD_20250719
["ID","MTS","AMOUNT","RATE_DAILY","PERIOD"]
[373296027,1752930650654,-480.0,0.00019178,2]
[373296030,1752930650664,-480.0,0.00019178,2]
[373296031,1752930650674,-480.0,0.00019178,2]
[373296033,1752930650683,-480.0,0.00019178,2]
[373296035,1752930650693,-480.0,0.00019178,2]
[373296037,1752930650702,-480.0,0.00019178,2]
[373296039,1752930650712,-480.0,0.00019178,2]
[373296041,1752930650725,-480.0,0.00019178,2]
[373296043,1752930650734,-480.0,0.00019178,2]
[373296046,1752930650744,-480.0,0.00019178,2]
[373296047,1752930650753,-480.0,0.00019178,2]
[373296050,1752930650763,-480.0,0.00019178,2]
[373296051,1752930650773,-480.0,0.00019178,2]
[373296053,1752930650783,-480.0,0.00019178,2]
[373296055,1752930650792,-480.0,0.00019178,2]
[373296057,1752930650802,-480.0,0.00019178,2]
[373296059,1752930650813,-480.0,0.00019178,2]
[373296062,1752930650823,-480.0,0.00019178,2]
[373296063,1752930650836,-480.0,0.00019178,2]
[373296065,1752930650846,-480.0,0.00019178,2]
[373296067,1752930650856,-413.83632277,0.00019178,2]
[373296069,1752930650866,-480.0,0.00019178,2]
[373296071,1752930650876,-480.0,0.00019178,2]
[373296073,1752930650885,-480.0,0.00019178,2]
[373296075,1752930650895,-480.0,0.00019178,2]
[373296077,1752930650906,-480.0,0.00019178,2]
[373296079,1752930650916,-501.90737253,0.00019178,2]
[373296081,1752930650925,-480.0,0.00019178,2]
[373296083,1752930650935,-480.0,0.00019178,2]
[373296085,1752930650944,-480.0,0.00019178,2]
[373296087,1752930650954,-480.0,0.00019178,2]
[373296089,1752930650964,-480.0,0.00019178,2]
[373296091,1752930650973,-480.0,0.00019178,2]
[373296093,1752930650982,-480.0,0.00019178,2]
[373296095,1752930650991,-480.0,0.00019178,2]
[373296097,1752930651000,-480.0,0.00019178,2]
[373296099,1752930651011,-480.0,0.00019178,2]
[373296101,1752930651020,-480.0,0.00019178,2]
[373296103,1752930651030,-440.0,0.00019178,2]
[373296105,1752930651040,-480.0,0.00019178,2]
[373296106,1752930651050,-425.53256646,0.00019178,2]
[373296108,1752930651059,-440.0,0.00019178,2]
[373296110,1752930651069,-480.0,0.00019178,2]
[373296112,1752930651079,-480.0,0.00019178,2]
[373296114,1752930651089,-480.0,0.00019178,2]
[373296116,1752930651101,-480.0,0.00019178,2]
[373296118,1752930651110,-480.0,0.00019178,2]
[373296120,1752930651120,-480.0,0.00019178,2]
[373296122,1752930651130,-480.0,0.00019178,2]
[373296124,1752930651139,-480.0,0.00019178,2]
[373296126,1752930651149,-480.0,0.00019178,2]
[373296128,1752930651158,-480.0,0.00019178,2]
[373296130,1752930651167,-480.0,0.00019178,2]
[373296132,1752930651178,-480.0,0.00019178,2]
[373296134,1752930651188,-480.0,0.00019178,2]
[373296136,1752930651198,-480.0,0.00019178,2]
[373296138,1752930651207,-480.0,0.00019178,2]
[373296140,1752930651217,-480.0,0.00019178,2]
[373296142,1752930651227,-480.0,0.00019178,2]
[373296143,1752930651236,-480.0,0.00019178,2]
[373296144,1752930651245,-480.0,0.00019178,2]
[373296145,1752930651255,-480.0,0.00019178,2]
[373296146,1752930651265,-480.0,0.00019178,2]
[373296147,1752930651274,-480.0,0.00019178,2]
[373296148,1752930651284,-480.0,0.00019178,2]
[373296149,1752930651294,-434.50263224,0.00019178,2]
[373296150,1752930651303,-480.0,0.00019178,2]
[373296151,1752930651313,-480.0,0.00019178,2]
[373296152,1752930651323,-480.0,0.00019178,2]
[373296153,1752930651335,-480.0,0.00019178,2]
[373296154,1752930651345,-480.0,0.00019178,2]
[373296155,1752930651356,-467.39228579,0.00019178,2]
[373296156,1752930651365,-480.0,0.00019178,2]
[373296158,1752930651375,-480.0,0.00019178,2]
[373296160,1752930651385,-480.0,0.00019178,2]
[373296162,1752930651395,-480.0,0.00019178,2]
[373296164,1752930651405,-480.0,0.00019178,2]
[373296166,1752930651415,-480.0,0.00019178,2]
[373296168,1752930651424,-480.0,0.00019178,2]
[373296170,1752930651433,-480.0,0.00019178,2]
[373296172,1752930651443,-480.0,0.00019178,2]
[373296174,1752930651452,-440.0,0.00019178,2]
[373296176,1752930651462,-480.0,0.00019178,2]
[373296178,1752930651471,-583.10589247,0.00019178,2]
[373296180,1752930651480,-444.33955091,0.00019178,2]
[373296182,1752930651490,-480.0,0.00019178,2]
[373296184,1752930651499,-480.0,0.00019178,2]
[373296186,1752930651508,-480.0,0.00019178,2]
[373296188,1752930651518,-480.0,0.00019178,2]
[373296190,1752930651527,-480.0,0.00019178,2]
[373296192,1752930651536,-444.02656045,0.00019178,2]
[373296194,1752930651545,-480.0,0.00019178,2]
[373296196,1752930651555,-480.0,0.00019178,2]
[373296198,1752930651565,-480.0,0.00019178,2]
[373296200,1752930651574,-480.0,0.00019178,2]
[373296202,1752930651585,-480.0,0.00019178,2]
[373296204,1752930651595,-563.42,0.00019178,2]
[373296206,1752930651604,-480.0,0.00019178,2]
[373296208,1752930651613,-480.0,0.00019178,2]
[373296210,1752930651623,-424.66622761,0.00019178,2]
[373296212,1752930651632,-423.38340613,0.00019178,2]
[373296214,1752930651641,-480.0,0.00019178,2]
[373296216,1752930651651,-480.0,0.00019178,2]
[373296218,1752930651660,-480.0,0.00019178,2]
[373296220,1752930651669,-480.0,0.00019178,2]
[373296222,1752930651679,-480.0,0.00019178,2]
[373296224,1752930651689,-480.0,0.00019178,2]
[373296226,1752930651698,-480.0,0.00019178,2]
[373296228,1752930651707,-679.89,0.00019178,2]
[373296230,1752930651716,-480.0,0.00019178,2]
[373296232,1752930651726,-480.0,0.00019178,2]
[373296234,1752930651736,-480.0,0.00019178,2]
[373296236,1752930651745,-480.0,0.00019178,2]
[373296238,1752930651754,-480.0,0.00019178,2]
[373296240,1752930651763,-480.0,0.00019178,2]
[373296242,1752930651773,-480.0,0.00019178,2]
[373296244,1752930651782,-480.0,0.00019178,2]
[373296246,1752930651791,-480.0,0.00019178,2]
[373296248,1752930651801,-480.0,0.00019178,2]
[373296250,1752930651810,-480.0,0.00019178,2]
[373296252,1752930651820,-480.0,0.00019178,2]
[373296254,1752930651833,-480.0,0.00019178,2]
[373296256,1752930651843,-480.0,0.00019178,2]
[373296258,1752930651852,-480.0,0.00019178,2]
[373296260,1752930651862,-480.0,0.00019178,2]
[373296262,1752930651872,-480.0,0.00019178,2]
[373296264,1752930651882,-480.0,0.00019178,2]
[373296266,1752930651892,-480.0,0.00019178,2]
[373296268,1752930651902,-480.0,0.00019178,2]
[373296270,1752930651913,-480.0,0.00019178,2]
[373296272,1752930651923,-480.0,0.00019178,2]
[373296274,1752930651932,-480.0,0.00019178,2]
[373296276,1752930651941,-480.0,0.00019178,2]
[373296278,1752930651951,-480.0,0.00019178,2]
[373296280,1752930651960,-480.0,0.00019178,2]
[373296282,1752930651969,-456.23425013,0.00019178,2]
[373296284,1752930651979,-407.24391695,0.00019178,2]
[373296286,1752930651988,-480.0,0.00019178,2]
[373296288,1752930651997,-480.0,0.00019178,2]
[373296290,1752930652007,-480.0,0.00019178,2]
[373296292,1752930652016,-480.0,0.00019178,2]
[373296294,1752930652028,-465.43874176,0.00019178,2]
[373296296,1752930652037,-480.0,0.00019178,2]
[373296298,1752930652046,-480.0,0.00019178,2]
[373296300,1752930652056,-480.0,0.00019178,2]
[373296302,1752930652067,-480.0,0.00019178,2]
[373296304,1752930652076,-480.0,0.00019178,2]
[373296306,1752930652089,-480.0,0.00019178,2]
[373296308,1752930652103,-480.0,0.00019178,2]
[373296310,1752930652112,-480.0,0.00019178,2]
[373296312,1752930652121,-480.0,0.00019178,2]
[373296314,1752930652130,-480.0,0.00019178,2]
[373296316,1752930652140,-480.0,0.00019178,2]
[373296318,1752930652149,-480.0,0.00019178,2]
[373296320,1752930652158,-368.19497733,0.00019178,2]
[373296322,1752930652167,-480.0,0.00019178,2]
[373296324,1752930652178,-445.97878919,0.00019178,2]
[373296326,1752930652187,-480.0,0.00019178,2]
[373296328,1752930652196,-480.0,0.00019178,2]
[373296329,1752930652205,-480.0,0.00019178,2]
[373296331,1752930652215,-480.0,0.00019178,2]
[373296333,1752930652224,-480.0,0.00019178,2]
[373296336,1752930652234,-480.0,0.00019178,2]
[373296338,1752930652243,-480.0,0.00019178,2]
[373296340,1752930652253,-480.0,0.00019178,2]
[373296342,1752930652263,-480.0,0.00019178,2]
[373296344,1752930652272,-480.0,0.00019178,2]
[373296346,1752930652282,-480.0,0.00019178,2]
[373296348,1752930652291,-480.0,0.00019178,2]
[373296350,1752930652300,-480.0,0.00019178,2]
[373296352,1752930652309,-480.0,0.00019178,2]
[373296354,1752930652320,-480.0,0.00019178,2]
[373296356,1752930652335,-2975.96323,0.00019178,2]
[373296357,1752930652344,-509.27,0.00019178,2]
[373296359,1752930652353,-742.98,0.00019178,2]
[373296361,1752930652362,-480.0,0.00019178,2]
[373296363,1752930652372,-480.0,0.00019178,2]
[373296365,1752930652382,-480.0,0.00019178,2]
[373296368,1752930652391,-480.0,0.00019178,2]
[373296369,1752930652401,-385.5007257,0.00019178,2]
[373296372,1752930652411,-480.0,0.00019178,2]
[373296373,1752930652420,-480.0,0.00019178,2]
[373296376,1752930652429,-750.15,0.00019178,2]
[373296377,1752930652439,-480.0,0.00019178,2]
[373296379,1752930652448,-2046.31,0.00019178,2]
[373296382,1752930652458,-401.90756202,0.00019178,2]
[373296384,1752930652468,-480.0,0.00019178,2]
[373296386,1752930652477,-480.0,0.00019178,2]
[373296387,1752930652487,-480.0,0.00019178,2]
[373296389,1752930652496,-480.0,0.00019178,2]
[373296392,1752930652506,-480.0,0.00019178,2]
[373296394,1752930652515,-480.0,0.00019178,2]
[373296396,1752930652524,-480.0,0.00019178,2]
[373296398,1752930652535,-480.0,0.00019178,2]
[373296399,1752930652545,-525.32,0.00019178,2]
[373296401,1752930652554,-480.0,0.00019178,2]
[373296404,1752930652564,-480.0,0.00019178,2]
[373296406,1752930652574,-480.0,0.00019178,2]
[373296408,1752930652584,-405.64762029,0.00019178,2]
[373296410,1752930652594,-421.40131709,0.00019178,2]
[373296412,1752930652603,-480.0,0.00019178,2]
[373296414,1752930652613,-480.0,0.00019178,2]
[373296416,1752930652623,-480.0,0.00019178,2]
[373296418,1752930652632,-480.0,0.00019178,2]
[373296440,1752930652842,-616.06597817,0.00019178,2]
[373296442,1752930652852,-480.0,0.00019178,2]
[373296444,1752930652862,-480.0,0.00019178,2]
[373296446,1752930652872,-480.0,0.00019178,2]
[373296448,1752930652881,-384.40479296,0.00019178,2]
[373296450,1752930652891,-480.0,0.00019178,2]
[373296452,1752930652901,-480.0,0.00019178,2]
[373296454,1752930652910,-480.0,0.00019178,2]
[373296456,1752930652920,-640.05,0.00019178,2]
[373296458,1752930652930,-1017.25,0.00019178,2]
[373296460,1752930652940,-385.6841223,0.00019178,2]
[373296462,1752930652950,-480.0,0.00019178,2]
[373296464,1752930652959,-480.0,0.00019178,2]
[373296466,1752930652969,-480.0,0.00019178,2]
[373296468,1752930652979,-480.0,0.00019178,2]
[373296470,1752930652988,-440.0,0.00019178,2]
[373296472,1752930652998,-480.0,0.00019178,2]
[373296474,1752930653007,-480.0,0.00019178,2]
[373296476,1752930653017,-480.0,0.00019178,2]
[373296478,1752930653026,-480.0,0.00019178,2]
[373296480,1752930653036,-480.0,0.00019178,2]
[373296482,1752930653045,-480.0,0.00019178,2]
[373296484,1752930653055,-480.0,0.00019178,2]
[373296486,1752930653065,-341.20867129,0.00019178,2]
[373296488,1752930653074,-548.59,0.00019178,2]
[373296490,1752930653084,-480.0,0.00019178,2]
[373296492,1752930653097,-410.84584985,0.00019178,2]
[373297953,1752930679199,159.85,0.00014722,2]
[373297972,1752930720779,1002.26572649,0.0003,120]
[373298032,1752930840617,160.26,0.00023,30]
[373298039,1752930853796,500.0,0.00023,30]
[373298041,1752930857154,150.0,0.00023,30]
[373298042,1752930859432,150.0,0.00023,30]
[373298046,1752930862970,500.0,0.00023,30]
[373298048,1752930865823,150.0,0.00023,30]
[373298049,1752930867318,150.0,0.00023,30]
[373298050,1752930868801,500.0,0.00023,30]
[373298051,1752930873240,150.0,0.00023,30]
[373298052,1752930874700,150.0,0.00023,30]
[373298055,1752930884669,150.0,0.00023,30]
[373298061,1752930889232,150.0,0.00023,30]
[373298063,1752930891454,500.0,0.00023,30]
[373298067,1752930892781,1306.0,0.00023,30]
[373298074,1752930903181,8762.6,0.00015,2]
[373298075,1752930903208,2088.98766538,0.00015,2]
[373298077,1752930909842,150.0,0.00023,30]
[373298078,1752930910712,150.0,0.00023,30]
[373298079,1752930913138,150.0,0.00023,30]
[373298083,1752930915383,494.0,0.00023,30]
[373298084,1752930915626,3635.0,0.00023,30]
[373298088,1752930924398,500.0,0.00023,30]
[373298090,1752930927833,150.0,0.00023,30]
[373298093,1752930934114,150.0,0.00023,30]
[373298094,1752930935449,473.0,0.00023,30]
[373298095,1752930935559,315.15645857,0.000211,28]
[373298129,1752931034446,150.0,0.00023,30]
[373298131,1752931036049,150.0,0.00023,30]
[373298132,1752931038066,150.0,0.00023,30]
[373298134,1752931041359,150.0,0.00023,30]
[373298136,1752931048361,500.0,0.00023,30]
[373298137,1752931051336,1252.0,0.00023,30]
[373298139,1752931060698,200.0,0.00023,30]
[373298143,1752931072465,150.0,0.00023,30]
[373298144,1752931075713,150.0,0.00023,30]
[373298145,1752931078518,150.0,0.00023,30]
[373298150,1752931097564,263.67,0.00013699,2]
[373298164,1752931150016,453.0,0.00023,30]
[373298173,1752931203121,2867.46011883,0.00015,2]
[373298188,1752931340493,500.0,0.00029589,120]
[373298195,1752931395656,346.58,0.00026878,120]
[373298200,1752931477100,259.26838108,0.00023,30]
[373298205,1752931631051,630.273811,0.00015,2]
[373298206,1752931640605,172.13736973,0.0001305,2]
[373298211,1752931722384,3765.64213157,0.00013368,2]
[373298212,1752931722408,128.29716972,0.00013368,2]
[373298213,1752931726760,300.0,0.00025,120]
[373298214,1752931802638,300.0,0.0003,120]
[373298216,1752931813555,250.0,0.00015,2]
[373298224,1752931831737,-200.0,0.00016605,2]
[373298225,1752931831748,-784.78107549,0.000168,2]
[373298226,1752931831794,-458.1293183,0.000168,2]
[373298227,1752931831804,-678.663573,0.000168,2]
[373298228,1752931831814,-1242.91039378,0.00016833,2]
[373298229,1752931831823,-1242.91039378,0.00016866,2]
[373298244,1752931832257,-1242.91039378,0.00016899,2]
[373298247,1752931832277,-706.01674228,0.000169,2]
[373298252,1752931832299,-259.35505036,0.000169,2]
[373298254,1752931832311,-307.5632082,0.00016973,2]
[373298256,1752931832321,-500.0,0.00016973,2]
[373298258,1752931832331,-404.9,0.0001699,2]
[373298260,1752931832340,-404.9,0.0001699,2]
[373298262,1752931832349,-217.17734268,0.00016999,2]
[373298264,1752931832360,-300.0,0.00016999,2]
[373298266,1752931832369,-118.24024844,0.00016999,2]
[373298268,1752931832382,-1081.75975156,0.00016999,2]
[373298270,1752931832390,-2001.88975818,0.00017,2]
[373298272,1752931832403,-2577.53049972,0.00017,2]
[373298274,1752931832418,-9014.81671054,0.00017,2]
[373298277,1752931832431,-71295.5893632,0.00017,2]
[373298280,1752931832459,-21321.77432055,0.00017,2]
[373298283,1752931832470,-1297.40310831,0.00017,2]
[373298370,1752931838011,-293.21854415,0.00016999,2]
[373298371,1752931838020,-56474.70117809,0.00017,2]
[373298372,1752931838143,-747.00385044,0.00017,2]
[373298521,1752931839829,-800.0,0.000169,2]
[373298524,1752931839839,-10985.0,0.00017,2]
[373298583,1752931840142,-556.87869515,0.00017,2]
[373298586,1752931840154,-1774.09456886,0.00017,2]
[373298597,1752931840202,-8575.29822813,0.00017,2]
[373298609,1752931840262,-152079.94443225,0.00017,2]
[373298612,1752931840272,-4811.51127957,0.00017,2]
[373298615,1752931840281,-204384.09598319,0.00017,2]
[373298617,1752931840291,-211390.43062654,0.00017,2]
[373298626,1752931840334,-204001.93224958,0.00017,2]
[373298904,1752931842845,-7315.2530626,0.00017,2]
[373299142,1752931845335,-288.19630875,0.00017,2]
[373299209,1752931845998,-11059.1262732,0.00017,2]
[373299211,1752931846009,-2353.8975984,0.00017,2]
[373299250,1752931865644,600.0,0.0003,120]
[373299251,1752931911643,299.999999,0.0003,120]
[373299252,1752931912704,180.0,0.000166,7]
[373299255,1752932042696,1800.0,0.0003,120]
[373299256,1752932166012,250.48,0.00013699,2]
[373299259,1752932308142,174.81812504,0.00015978,2]
[373299260,1752932436044,2418.24133946,0.00015935,2]
[373299261,1752932524813,902.56,0.00030137,120]
[373299262,1752932536673,1466.93,0.00015903,2]
[373299263,1752932548630,946.84,0.00030137,120]
[373299264,1752932583637,4432.564882,0.00015953,2]
[373299265,1752932594446,1000.0,0.00015918,2]
[373299266,1752932623801,900.0,0.00030137,120]
[373299287,1752932647290,382.84,0.00015905,2]
[373299288,1752932669294,516.39144187,0.0003,120]
[373299289,1752932676105,781.08034596,0.00016,3]
[373299290,1752932727407,200.0,0.0001584,2]
[373299291,1752932737222,157.72,0.0001584,2]
[373299292,1752932737440,157.72,0.00015998,2]
[373299293,1752932980943,190.0,0.00015842,7]
[373299294,1752932996453,421.98,0.00015849,2]
[373299304,1752933017411,165.41,0.00015786,2]
[373299307,1752933031987,-663.36,0.00016037,2]
[373299308,1752933031997,-300.0,0.00016037,2]
[373299309,1752933032006,-250.0,0.00016037,2]
[373299310,1752933032015,-165.41646928,0.00016037,2]
[373299311,1752933032024,-505.0,0.00016075,2]
[373299312,1752933032034,-126.19245729,0.00016109,2]
[373299313,1752933032071,-123.80754271,0.00016109,2]
[373299314,1752933032082,-261.75,0.00016132,2]
[373299315,1752933032091,-264.0,0.00016168,2]
[373299316,1752933032101,-1200.0,0.00016168,2]
[373299317,1752933032110,-23900.0,0.00016169,2]
[373299318,1752933032120,-298.33,0.00016198,2]
[373299319,1752933032129,-150.0,0.000162,2]
[373299320,1752933032138,-150.0,0.000162,2]
[373299321,1752933032148,-150.0,0.000162,2]
[373299322,1752933032157,-150.0,0.000162,2]
[373299323,1752933032166,-243.45139319,0.000162,2]
[373299324,1752933032175,-152.39115297,0.000162,2]
[373299325,1752933032185,-161.92783028,0.000162,2]
[373299326,1752933032194,-155.52477491,0.000162,2]
[373299327,1752933032203,-390.28,0.0001623,2]
[373299328,1752933032213,-164.94,0.00016356,2]
[373299329,1752933032222,-250.0,0.00016402,2]
[373299330,1752933032231,-666.0,0.00016438,2]
[373299331,1752933032241,-1478.56301313,0.00016481,2]
[373299332,1752933032250,-150.0,0.00016559,2]
[373299333,1752933032260,-874.43121618,0.00016773,2]
[373299334,1752933032269,-169.03,0.00016802,2]
[373299335,1752933032279,-1042.52345148,0.0001683,2]
[373299336,1752933032289,-8266.76948746,0.00016899,2]
[373299337,1752933032298,-1051.73734326,0.000169,2]
[373299338,1752933032309,-157.39891691,0.000169,2]
[373299339,1752933032318,-220.07739781,0.000169,2]
[373299340,1752933032327,-17535.34689971,0.000169,2]
[373299342,1752933032339,-588.3472852,0.000169,2]
[373299344,1752933032348,-226.93566903,0.000169,2]
[373299346,1752933032357,-8042.05814172,0.000169,2]
[373299349,1752933032383,-406.36999427,0.000169,2]
[373299351,1752933032395,-5934.42807293,0.000169,2]
[373299354,1752933032405,-500.0,0.00016912,2]
[373299356,1752933032414,-500.0,0.00016912,2]
[373299359,1752933032423,-500.0,0.00016912,2]
[373299362,1752933032432,-218.35991958,0.00016912,2]
[373299365,1752933032441,-151.0,0.00016912,2]
[373299368,1752933032450,-151.0,0.00016912,2]
[373299371,1752933032459,-151.0,0.00016912,2]
[373299373,1752933032468,-151.0,0.00016912,2]
[373299375,1752933032478,-151.0,0.00016912,2]
[373299377,1752933032487,-151.0,0.00016912,2]
[373299379,1752933032497,-188.0,0.00016912,2]
[373299381,1752933032506,-9999.99,0.00016922,2]
[373299382,1752933032516,-9999.99,0.00016922,2]
[373299384,1752933032525,-299.99,0.00016922,4]
[373299386,1752933032534,-9999.99,0.00016922,2]
[373299388,1752933032544,-338.13,0.00016922,2]
[373299390,1752933032553,-150.99,0.00016922,2]
[373299392,1752933032563,-931.48,0.00016922,2]
[373299394,1752933032572,-999.99,0.00016922,2]
[373299396,1752933032581,-9999.99,0.00016922,2]
[373299398,1752933032591,-150.99,0.00016922,2]
[373299400,1752933032600,-261.75,0.00016939,2]
[373299402,1752933032609,-2062.8363,0.00016959,2]
[373299404,1752933032619,-500.0,0.00016973,2]
[373299406,1752933032628,-500.0,0.00016973,2]
[373299408,1752933032637,-500.0,0.00016973,2]
[373299410,1752933032646,-500.0,0.00016973,2]
[373299412,1752933032655,-563.49068267,0.00016973,2]
[373299414,1752933032665,-506.49510036,0.00016973,2]
[373299415,1752933032674,-500.0,0.00016973,2]
[373299418,1752933032684,-500.0,0.00016973,2]
[373299419,1752933032693,-159.73334563,0.00016973,2]
[373299421,1752933032702,-500.0,0.00016973,2]
[373299423,1752933032712,-500.0,0.00016973,2]
[373299425,1752933032721,-500.0,0.00016973,2]
[373299427,1752933032730,-520.66473264,0.00016973,2]
[373299429,1752933032740,-166.04404493,0.00016973,2]
[373299431,1752933032749,-500.0,0.00016973,2]
[373299433,1752933032759,-500.0,0.00016973,2]
[373299435,1752933032769,-500.0,0.00016973,2]
[373299437,1752933032778,-500.0,0.00016973,2]
[373299439,1752933032787,-500.0,0.00016973,2]
[373299440,1752933032797,-500.0,0.00016973,2]
[373299441,1752933032807,-501.90087761,0.00016973,2]
[373299442,1752933032816,-277.75056853,0.00016973,2]
[373299443,1752933032827,-500.0,0.00016973,2]
[373299444,1752933032838,-500.0,0.00016973,2]
[373299445,1752933032848,-500.0,0.00016973,2]
[373299446,1752933032858,-500.0,0.00016973,2]
[373299447,1752933032867,-500.0,0.00016973,2]
[373299448,1752933032877,-209.22272474,0.0001699,2]
[373299449,1752933032887,-468.32879209,0.00016999,2]
[373299450,1752933032902,-500.0,0.00016999,2]
[373299451,1752933032911,-500.0,0.00016999,2]
[373299452,1752933032922,-500.0,0.00016999,2]
[373299453,1752933032932,-500.0,0.00016999,2]
[373299454,1752933032942,-525.52714787,0.00016999,2]
[373299455,1752933032951,-480.51003083,0.00016999,2]
[373299456,1752933032960,-185.4032705,0.00016999,2]
[373299457,1752933032970,-198098.19343312,0.00017,2]
[373299458,1752933032979,-4811.51127957,0.00017,2]
[373299459,1752933032991,-1507061.19266656,0.00017,2]
[373299460,1752933033004,-21402.99999996,0.00017,2]
[373299461,1752933033045,-16453.13228539,0.00017,2]
[373299462,1752933037912,-522.08205912,0.00017,2]
[373299463,1752933038074,-66220.15102929,0.00017,2]
[373299464,1752933038184,-15679.16759936,0.00017,2]
[373299465,1752933038196,-1760.18357445,0.00017,2]
[373299477,1752933040279,-228.0915742,0.00016999,2]
[373299478,1752933040289,-58.62738461,0.00017,2]
[373299479,1752933040305,-3041.17818132,0.00017,2]
[373299480,1752933040322,-3476.04207273,0.00017,2]
[373299481,1752933040370,-342.108,0.00017,2]
[373299482,1752933040382,-302.87949999,0.00017,2]
[373299483,1752933040395,-34145.12740211,0.00017,2]
[373299484,1752933040405,-7500.0,0.00017,2]
[373299485,1752933040414,-2322.2137,0.00017,2]
[373299486,1752933040424,-76407.05459715,0.00017022,2]
[373299487,1752933040434,-150.0,0.000171,2]
[373299488,1752933040444,-150.0,0.000171,2]
[373299489,1752933040454,-150.0,0.000171,2]
[373299490,1752933040463,-14382.85620892,0.00017166,2]
[373299491,1752933040473,-17535.34689964,0.00017178,2]
[373299492,1752933040484,-505.0,0.00017201,3]
[373299493,1752933040493,-150.0,0.00017221,2]
[373299494,1752933040503,-3139.09,0.0001726,2]
[373299495,1752933040512,-553.80305356,0.00017282,2]
[373299496,1752933040522,-283.5,0.00017364,2]
[373299497,1752933040531,-283.5,0.00017374,2]
[373299498,1752933040541,-283.5,0.00017383,2]
[373299499,1752933040550,-283.5,0.00017392,2]
[373299500,1752933040559,-283.5,0.00017401,2]
[373299501,1752933040569,-250.0,0.00017408,2]
[373299502,1752933040579,-283.5,0.0001741,2]
[373299503,1752933040588,-283.5,0.00017419,2]
[373299504,1752933040600,-283.5,0.00017429,2]
[373299505,1752933040609,-14382.85620892,0.00017433,2]
[373299507,1752933040618,-283.5,0.00017438,2]
[373299508,1752933040628,-283.5,0.00017447,2]
[373299509,1752933040637,-283.5,0.00017456,2]
[373299510,1752933040647,-17535.34689964,0.00017457,2]
[373299511,1752933040657,-283.5,0.00017465,2]
[373299512,1752933040667,-283.5,0.00017474,2]
[373299513,1752933040676,-283.5,0.00017483,2]
[373299514,1752933040686,-283.5,0.00017493,2]
[373299515,1752933040695,-195.0,0.000175,2]
[373299516,1752933040704,-283.5,0.00017502,2]
[373299517,1752933040713,-283.5,0.00017511,2]
[373299518,1752933040723,-283.5,0.0001752,2]
[373299519,1752933040732,-1000.0,0.00017521,2]
[373299520,1752933040741,-500.39689851,0.00017521,2]
[373299521,1752933040750,-510.43775508,0.00017521,2]
[373299522,1752933040760,-283.5,0.00017529,2]
[373299523,1752933040769,-283.5,0.00017538,2]
[373299524,1752933040779,-482.0,0.00017616,2]
[373299525,1752933040788,-300.0,0.00017641,2]
[373299526,1752933040798,-250.0,0.00017641,2]